bitfinex-derivatives/quotes_SOLF0:USTF0_20220101
["timestamp","ask_amount","ask_price","bid_price","bid_amount"]
[1641048202102,4.12386249,172.22,172.21,4.1238666]
[1641048202702,4.12386249,172.22,172.18,58.36709]
[1641048202905,4.12386249,172.22,172.18,70.73513048]
[1641048203604,12.37158747,172.25,172.21,4.12380103]
[1641048205006,12.37158747,172.24,172.2,4.12380103]
[1641048206708,12.37158747,172.23,172.19,4.12380103]
[1641048207908,15.37158747,172.23,172.19,4.12380103]
[1641048209210,12.37158747,172.23,172.19,4.12380103]
[1641048209409,12.37158747,172.21,172.16,4.12380103]
[1641048210210,12.37158747,172.21,172.17,4.12380103]
[1641048211512,12.37158747,172.2,172.16,4.12380103]
[1641048212014,12.37158747,172.21,172.17,4.12380103]
[1641048213414,12.37158747,172.21,172.16,4.12380103]
[1641048215014,12.37158747,172.2,172.16,4.12380103]
[1641048215613,12.37158747,172.2,172.18,27.66479]
[1641048215813,44.69598747,172.23,172.19,4.12380103]
[1641048216616,44.69598747,172.23,172.19,10.10380103]
[1641048216814,12.37158747,172.23,172.19,10.10380103]
[1641048217917,12.37158747,172.22,172.19,5.98]
[1641048218115,12.37158747,172.22,172.18,31.78859103]
[1641048218716,12.37158747,172.23,172.19,4.12380103]
[1641048219517,12.37158747,172.23,172.18,31.78859103]
[1641048220017,9.17331359,172.25,172.21,4.12380103]
[1641048220018,12.37158747,172.25,172.21,4.12380103]
[1641048223521,12.37158747,172.25,172.21,7.12380103]
[1641048223724,12.37158747,172.26,172.23,27.66479]
[1641048224624,12.37158747,172.27,172.23,31.78859103]
[1641048226726,12.37158747,172.26,172.23,27.66479]
[1641048227328,12.37158747,172.27,172.23,31.78859103]
[1641048228428,12.37158747,172.27,172.22,4.12380103]
[1641048228932,12.37158747,172.26,172.22,5.83919482]
[1641048229732,12.37158747,172.26,172.22,33.50398482]
[1641048230134,12.37158747,172.26,172.22,31.78859103]
[1641048231939,12.37158747,172.28,172.22,27.66479]
[1641048235242,4.10957409,172.24,172.22,27.66479]
[1641048235943,4.10957409,172.26,172.22,27.66479]
[1641048236641,4.10957409,172.24,172.23,5.83922564]
[1641048237743,4.10957409,172.24,172.23,33.50401564]
[1641048237943,4.10957409,172.24,172.23,29.38021461]
[1641048238142,4.10957409,172.26,172.23,29.38021461]
[1641048238945,4.10957409,172.26,172.23,32.38021461]
[1641048239347,4.10957409,172.26,172.24,3.0]
[1641048239547,12.37158747,172.3,172.25,3.0]
[1641048239747,12.37158747,172.3,172.29,55.32958]
[1641048240447,12.37158747,172.33,172.29,57.04500461]
[1641048241246,12.37158747,172.33,172.29,29.38021461]
[1641048241648,12.37158747,172.33,172.29,27.66479]
[1641048242248,12.37158747,172.33,172.26,30.66479]
[1641048242552,12.37158747,172.32,172.26,30.66479]
[1641048243449,12.37158747,172.32,172.27,1.71552976]
[1641048244049,12.37158747,172.31,172.27,1.71552976]
[1641048244951,12.37158747,172.32,172.27,1.71552976]
[1641048245753,12.37158747,172.32,172.29,27.66479]
[1641048246153,14.77965409,172.33,172.29,27.66479]
[1641048247554,14.77965409,172.33,172.31,3.0]
[1641048247756,14.77965409,172.33,172.32,27.66479]
[1641048248357,12.37158747,172.34,172.32,27.66479]
[1641048252164,12.37158747,172.35,172.32,27.66479]
[1641048254365,12.37158747,172.34,172.29,27.66479]
[1641048254765,12.37158747,172.34,172.3,1.75252294]
[1641048256368,12.37158747,172.33,172.29,27.66479]
[1641048258570,12.37158747,172.34,172.3,1.75251491]
[1641048262377,12.37158747,172.34,172.29,27.66479]
[1641048262378,12.37158747,172.33,172.29,27.66479]
[1641048263980,12.3656268,172.34,172.3,1.75250846]
[1641048265081,12.3656268,172.34,172.29,27.66479]
[1641048265886,12.3656268,172.34,172.29,30.66479]
[1641048266085,12.3656268,172.34,172.29,27.66479]
[1641048266284,12.3656268,172.34,172.3,1.7525224]
[1641048267889,12.3656268,172.34,172.3,29.4173124]
[1641048268687,12.3656268,172.34,172.3,27.66479]
[1641048268888,12.3656268,172.33,172.3,27.66479]
[1641048271093,12.3656268,172.34,172.3,27.66479]
[1641048271700,12.3656268,172.34,172.27,27.66479]
[1641048271894,12.3656268,172.33,172.27,27.66479]
[1641048272495,12.3656268,172.31,172.27,27.66479]
[1641048274801,12.36791274,172.3,172.24,30.609]
[1641048275500,12.36791274,172.3,172.25,1.75242903]
[1641048276999,12.36791274,172.29,172.25,1.75242903]
[1641048277799,43.97255615,172.33,172.25,1.75242903]
[1641048278203,46.97255615,172.33,172.25,1.75242903]
[1641048278400,12.36841841,172.29,172.25,1.75242903]
[1641048278900,3.0,172.32,172.25,1.75242903]
[1641048279100,12.36954684,172.28,172.24,1.75242903]
[1641048280103,12.36954684,172.27,172.23,1.75242903]
[1641048280701,32.4563,172.3,172.23,1.75242903]
[1641048280904,11.47412241,172.29,172.23,1.75242903]
[1641048281104,11.47412241,172.29,172.23,4.75242903]
[1641048281504,12.36950232,172.28,172.23,4.75242903]
[1641048281905,12.36950232,172.28,172.26,27.66479]
[1641048282505,14.77756894,172.29,172.26,27.66479]
[1641048282706,14.77756894,172.29,172.24,1.75242903]
[1641048283104,2.40806662,172.29,172.24,1.75242903]
[1641048283305,12.36904585,172.28,172.23,1.75242903]
[1641048284407,11.44098162,172.29,172.23,1.75242903]
[1641048285207,12.36921603,172.28,172.23,1.75242903]
[1641048285810,11.44098162,172.29,172.23,1.75242903]
[1641048286009,11.44098162,172.29,172.23,4.75242903]
[1641048286411,11.44098162,172.29,172.23,1.75242903]
[1641048287210,12.36910287,172.28,172.23,1.75242903]
[1641048287712,11.44098162,172.3,172.23,1.75242903]
[1641048288512,12.36907488,172.28,172.23,1.75242903]
[1641048289311,2.37064932,172.3,172.22,27.66479]
[1641048290012,2.37064932,172.3,172.25,27.66479]
[1641048290613,2.37064932,172.3,172.22,27.66479]
[1641048294018,2.37064932,172.3,172.25,27.66479]
[1641048298125,2.37064932,172.3,172.19,31.0291]
[1641048299226,14.68254736,172.3,172.19,31.0291]
[1641048300026,12.31189804,172.27,172.23,4.12342562]
[1641048304432,12.31189804,172.26,172.22,5.87577908]
[1641048305434,12.31189804,172.28,172.24,4.12342562]
[1641048306434,12.31189804,172.27,172.22,5.87577908]
[1641048307836,12.31189804,172.27,172.22,4.12342562]
[1641048308037,12.31189804,172.28,172.24,27.66479]
[1641048308837,12.31189804,172.29,172.24,27.66479]
[1641048310239,12.31189804,172.29,172.23,34.47402562]
[1641048310240,12.31189804,172.29,172.23,4.12342562]
[1641048310439,12.31189804,172.31,172.25,5.87259197]
[1641048311239,12.31189804,172.31,172.21,40.03283048]
[1641048311240,14.68254736,172.31,172.22,5.87259197]
[1641048311440,12.31189804,172.29,172.22,5.87259197]
[1641048311940,12.31189804,172.29,172.25,27.66479]
[1641048316046,12.31189804,172.29,172.23,4.12342562]
[1641048316447,4.11550258,172.25,172.22,5.87254499]
[1641048317048,12.31189804,172.29,172.23,4.12342562]
[1641048317952,4.11736378,172.25,172.23,4.12342562]
[1641048318451,12.31189804,172.29,172.23,4.12342562]
[1641048319153,4.11685446,172.25,172.23,4.12342562]
[1641048319755,12.31189804,172.29,172.23,4.12342562]
[1641048320054,12.31189804,172.29,172.25,27.66479]
[1641048320455,4.1165475,172.26,172.25,27.66479]
[1641048321256,12.31189804,172.3,172.25,27.66479]
[1641048322057,60.16322374,172.34,172.28,27.66479]
[1641048322058,2.37064932,172.33,172.28,27.66479]
[1641048322473,2.37064932,172.33,172.29,3.0]
[1641048322859,2.37064932,172.33,172.29,4.78674488]
[1641048323059,2.37064932,172.33,172.29,9.00574488]
[1641048323260,2.37064932,172.33,172.29,6.00574488]
[1641048323761,12.31189804,172.35,172.29,6.00574488]
[1641048323960,12.31189804,172.36,172.3,1.78674488]
[1641048324159,12.31189804,172.36,172.32,27.66479]
[1641048325759,12.31189804,172.35,172.32,27.66479]
[1641048327162,12.31189804,172.35,172.28,27.66479]
[1641048328062,12.31189804,172.33,172.28,27.66479]
[1641048329564,12.31189804,172.31,172.28,27.66479]
[1641048330164,2.36531735,172.34,172.28,27.66479]
[1641048330165,12.31189804,172.34,172.28,55.32958]
[1641048331764,12.31189804,172.35,172.29,1.78678015]
[1641048332063,12.31189804,172.35,172.31,27.66479]
[1641048332264,12.31189804,172.34,172.31,27.66479]
[1641048333065,12.31189804,172.35,172.31,27.66479]
[1641048334769,12.31189804,172.35,172.28,27.66479]
[1641048335466,12.31189804,172.33,172.28,27.66479]
[1641048335866,12.31189804,172.33,172.28,30.66479]
[1641048336067,12.31189804,172.33,172.32,27.66479]
[1641048336268,12.31189804,172.35,172.32,27.66479]
[1641048336868,44.54940131,172.39,172.32,27.66479]
[1641048336869,2.36531735,172.38,172.32,27.66479]
[1641048337077,2.36531735,172.38,172.28,27.66479]
[1641048337269,3.2978852,172.37,172.28,27.66479]
[1641048337468,3.2978852,172.37,172.28,30.66479]
[1641048337667,2.36531735,172.38,172.28,27.66479]
[1641048337871,12.31189804,172.37,172.28,27.66479]
[1641048338470,2.36531735,172.37,172.28,27.66479]
[1641048339269,2.36531735,172.37,172.28,30.66479]
[1641048339674,2.36531735,172.37,172.28,27.66479]
[1641048340772,14.67721539,172.39,172.28,27.66479]
[1641048341071,17.67721539,172.39,172.28,27.66479]
[1641048341373,3.29763827,172.38,172.28,27.66479]
[1641048341773,14.67721539,172.38,172.28,27.66479]
[1641048342776,2.36531735,172.37,172.28,27.66479]
[1641048343573,2.36531735,172.38,172.28,27.66479]
[1641048347584,12.31189804,172.34,172.29,1.78952947]
[1641048348282,12.36597919,172.33,172.29,1.78952947]
[1641048349082,29.4482,172.36,172.29,1.78952947]
[1641048349581,12.36601613,172.33,172.29,1.78952947]
[1641048350282,11.33252955,172.35,172.29,1.78952947]
[1641048350681,12.36600906,172.33,172.29,1.78952947]
[1641048351382,11.33252955,172.35,172.29,1.78952947]
[1641048351586,11.33252955,172.35,172.29,7.21352947]
[1641048352184,11.33252955,172.35,172.31,27.66479]
[1641048352385,2.36531735,172.35,172.29,1.78952947]
[1641048352686,14.73028758,172.35,172.29,1.78952947]
[1641048353287,12.36497023,172.34,172.29,1.78952947]
[1641048354286,12.36497023,172.34,172.31,27.66479]
[1641048355088,2.36531735,172.35,172.31,27.66479]
[1641048355387,2.36531735,172.35,172.33,3.0]
[1641048355588,2.36531735,172.35,172.32,3.0]
[1641048355789,12.36497023,172.36,172.32,4.78843431]
[1641048356191,12.36497023,172.36,172.34,27.66479]
[1641048356790,2.32962391,172.38,172.34,27.66479]
[1641048357594,12.36497023,172.36,172.34,27.66479]
[1641048358290,12.36497023,172.39,172.34,27.66479]
[1641048360392,12.36497023,172.38,172.34,27.66479]
[1641048362092,12.36497023,172.37,172.34,27.66479]
[1641048362293,15.36497023,172.37,172.28,12.36804048]
[1641048362495,12.36497023,172.37,172.28,12.36804048]
[1641048362693,15.36497023,172.37,172.28,12.36804048]
[1641048362893,12.36497023,172.35,172.27,45.05724933]
[1641048363094,12.36497023,172.35,172.27,14.15644933]
[1641048363695,12.36497023,172.35,172.27,1.78840885]
[1641048364399,12.36497023,172.35,172.29,27.66479]
[1641048365299,14.69523882,172.35,172.3,1.78840885]
[1641048366802,44.7374759,172.36,172.3,1.78840885]
[1641048367302,47.7374759,172.36,172.3,1.78840885]
[1641048367502,14.68894363,172.35,172.3,1.78840885]
[1641048367703,17.68894363,172.35,172.3,1.78840885]
[1641048368102,14.68894363,172.35,172.3,1.78840885]
[1641048368303,12.3568759,172.32,172.27,1.78840885]
[1641048369202,12.3568759,172.31,172.27,1.78840885]
[1641048370006,12.36736723,172.32,172.24,12.36804048]
[1641048370307,12.36736723,172.32,172.25,27.66479]
[1641048371408,15.36736723,172.32,172.25,27.66479]
[1641048371608,3.0,172.31,172.24,12.36804048]
[1641048371808,15.36736723,172.31,172.26,1.78840885]
[1641048372011,12.36736723,172.31,172.26,1.78840885]
[1641048372509,12.36897431,172.29,172.23,1.78840885]
[1641048373510,12.36897431,172.31,172.23,21.67673816]
[1641048374010,12.36897431,172.31,172.23,1.78840885]
[1641048374211,12.36897431,172.3,172.23,1.78840885]
[1641048375910,14.70104204,172.3,172.23,1.78840885]
[1641048376411,12.36897431,172.29,172.23,1.78840885]
[1641048377814,11.30343226,172.3,172.23,1.78840885]
[1641048378514,2.33206773,172.3,172.22,27.66479]
[1641048381417,4.10113664,172.29,172.22,31.76592664]
[1641048382016,2.33206773,172.3,172.22,31.76592664]
[1641048382219,2.33206773,172.3,172.22,27.66479]
[1641048382220,4.10134018,172.28,172.22,27.66479]
[1641048383018,4.10129501,172.29,172.22,27.66479]
[1641048383818,4.10129501,172.28,172.22,27.66479]
[1641048384621,12.30360918,172.28,172.24,4.10113664]
[1641048386022,11.30416877,172.3,172.25,4.10113664]
[1641048386023,12.30360918,172.29,172.25,4.10113664]
[1641048386823,14.63567691,172.3,172.26,4.10113664]
[1641048387923,14.63567691,172.3,172.23,1.78938015]
[1641048387924,2.33206773,172.3,172.27,4.10113664]
[1641048388525,12.30360918,172.29,172.25,4.10113664]
[1641048391932,12.30360918,172.29,172.23,4.78938015]
[1641048392132,2.3335705,172.32,172.25,12.36804048]
[1641048392733,2.3335705,172.32,172.31,27.66479]
[1641048392934,12.30360918,172.33,172.31,27.66479]
[1641048393333,12.30360918,172.34,172.31,27.66479]
[1641048394135,11.29954763,172.36,172.31,27.66479]
[1641048394937,12.36543084,172.34,172.31,27.66479]
[1641048396038,12.36543084,172.35,172.31,31.78658237]
[1641048397040,14.69770885,172.36,172.32,5.91137988]
[1641048397743,30.9662,172.39,172.31,27.66479]
[1641048399044,33.9662,172.39,172.31,27.66479]
[1641048399247,30.9662,172.39,172.31,27.66479]
[1641048399544,33.9662,172.39,172.31,27.66479]
[1641048399746,2.31403321,172.38,172.31,27.66479]
[1641048400044,2.31403321,172.38,172.29,32.5077]
[1641048400445,4.08998117,172.37,172.29,32.5077]
[1641048400946,4.08998117,172.37,172.31,27.66479]
[1641048402046,4.08998117,172.38,172.31,27.66479]
[1641048402647,4.08998117,172.37,172.31,27.66479]
[1641048408651,4.08998117,172.32,172.31,27.66479]
[1641048409349,12.26877035,172.36,172.31,27.66479]
[1641048409950,12.26877035,172.35,172.31,27.66479]
[1641048410653,12.26877035,172.33,172.31,27.66479]
[1641048411457,2.33177236,172.35,172.31,27.66479]
[1641048412053,12.36580386,172.33,172.31,27.66479]
[1641048412252,12.36580386,172.33,172.29,31.3367]
[1641048412455,12.36580386,172.33,172.28,27.66479]
[1641048412853,12.36580386,172.33,172.26,12.36804048]
[1641048413052,12.36580386,172.33,172.26,40.03283048]
[1641048413255,4.12194767,172.29,172.26,40.03283048]
[1641048413855,11.297403,172.34,172.26,40.03283048]
[1641048414157,12.36586206,172.33,172.26,27.66479]
[1641048414555,4.12195528,172.29,172.26,27.66479]
[1641048415155,12.3658861,172.33,172.26,27.66479]
[1641048415755,12.3658861,172.33,172.25,12.36804048]
[1641048415756,3.0,172.29,172.25,12.36804048]
[1641048415956,4.12206062,172.29,172.25,12.36804048]
[1641048416559,3.0,172.31,172.25,12.36804048]
[1641048416761,3.0,172.31,172.23,32.3042]
[1641048416762,4.10231636,172.31,172.23,32.3042]
[1641048416959,4.10231636,172.31,172.23,59.96899]
[1641048417259,29.99656236,172.32,172.23,59.96899]
[1641048418360,32.99656236,172.32,172.23,59.96899]
[1641048418563,4.10224223,172.31,172.23,59.96899]
[1641048418760,35.57454223,172.31,172.23,59.96899]
[1641048418960,38.57454223,172.31,172.23,59.96899]
[1641048419363,4.10247926,172.3,172.23,59.96899]
[1641048420766,31.4723,172.31,172.23,32.3042]
[1641048421363,4.10242613,172.3,172.23,32.3042]
[1641048422965,65.78409,172.31,172.23,32.3042]
[1641048423164,59.13709,172.31,172.23,32.3042]
[1641048423563,4.10242334,172.3,172.23,32.3042]
[1641048424765,59.13709,172.31,172.23,36.406623]
[1641048425364,4.10243931,172.3,172.23,36.406623]
[1641048425965,59.13709,172.31,172.23,36.406623]
[1641048427269,4.10252584,172.3,172.23,36.406623]
[1641048427770,9.13452584,172.3,172.23,36.406623]
[1641048427969,5.032,172.3,172.27,4.102423]
[1641048428170,19.67215225,172.3,172.27,4.102423]
[1641048428671,2.33321196,172.29,172.27,4.102423]
[1641048429272,5.032,172.3,172.27,4.102423]
[1641048429472,17.39999329,172.3,172.27,4.102423]
[1641048430175,20.39999329,172.3,172.27,4.102423]
[1641048430376,20.39999329,172.3,172.24,1.78945408]
[1641048430573,3.0,172.29,172.24,1.78945408]
[1641048430774,5.33326556,172.29,172.22,12.36804048]
[1641048431074,27.66479,172.28,172.22,12.36804048]
[1641048431574,42.36839086,172.28,172.22,1.78939491]
[1641048432474,2.33385403,172.27,172.22,1.78939491]
[1641048433277,12.37019626,172.27,172.22,1.78939491]
[1641048433976,2.33380958,172.27,172.22,1.78939491]
[1641048434878,11.30644099,172.3,172.22,1.78939491]
[1641048435379,14.30644099,172.3,172.22,1.78939491]
[1641048435777,12.36959802,172.28,172.22,1.78939491]
[1641048436378,2.33388764,172.29,172.22,1.78939491]
[1641048436978,12.36958802,172.28,172.22,1.78939491]
[1641048437479,40.03437802,172.28,172.22,1.78939491]
[1641048438479,27.66479,172.28,172.22,1.78939491]
[1641048439282,2.36248596,172.27,172.22,1.78939491]
[1641048439982,17.05180141,172.3,172.22,1.78939491]
[1641048440185,17.05180141,172.3,172.21,1.78939491]
[1641048440786,2.36241238,172.29,172.21,1.78939491]
[1641048441384,2.36241238,172.29,172.22,27.66479]
[1641048442284,2.36241238,172.29,172.23,1.78939491]
[1641048443183,4.725,172.3,172.23,1.78939491]
[1641048444084,59.13709,172.31,172.23,1.78939491]
[1641048444484,3.0,172.3,172.23,1.78939491]
[1641048444685,3.0,172.29,172.23,1.78939491]
[1641048445085,3.0,172.3,172.23,1.78939491]
[1641048445286,3.0,172.29,172.23,1.78939491]
[1641048445488,3.0,172.29,172.22,27.66479]
[1641048445688,5.40474099,172.29,172.22,27.66479]
[1641048446288,14.7315424,172.28,172.23,1.71003688]
[1641048448995,12.32680141,172.28,172.23,1.71003688]
[1641048450099,14.7315424,172.28,172.23,1.71003688]
[1641048450599,14.7315424,172.3,172.23,21.38668381]
[1641048451997,3.0,172.29,172.23,21.38668381]
[1641048452700,14.7315424,172.28,172.21,21.38668381]
[1641048453102,17.7315424,172.28,172.21,21.38668381]
[1641048453603,45.3963324,172.28,172.21,21.38668381]
[1641048454303,45.3963324,172.28,172.21,14.07807736]
[1641048454503,14.7315424,172.27,172.21,1.71003688]
[1641048456207,12.32680141,172.26,172.21,1.71003688]
[1641048457609,12.32680141,172.26,172.19,1.71003688]
[1641048458512,14.7315424,172.27,172.19,1.71003688]
[1641048466925,12.32680141,172.26,172.19,1.71003688]
[1641048468929,12.32680141,172.25,172.19,1.71003688]
[1641048470734,12.32680141,172.26,172.19,1.71003688]
[1641048471934,12.32680141,172.26,172.19,21.3870428]
[1641048473235,12.32680141,172.26,172.19,1.71003688]
[1641048473839,3.0,172.25,172.19,1.71003688]
[1641048474035,3.0,172.22,172.19,21.38703058]
[1641048474737,3.0,172.22,172.19,14.07807736]
[1641048474937,2.40474099,172.21,172.19,1.71003688]
[1641048475938,14.7315424,172.23,172.15,21.38740223]
[1641048476539,14.7315424,172.24,172.16,12.36804048]
[1641048477839,14.7315424,172.24,172.17,27.66479]
[1641048478341,14.7315424,172.24,172.16,12.36804048]
[1641048478740,17.7315424,172.24,172.16,12.36804048]
[1641048478941,14.7315424,172.24,172.16,12.36804048]
[1641048479340,2.40474099,172.24,172.16,12.36804048]
[1641048479540,2.40474099,172.24,172.15,21.38740223]
[1641048480041,2.40474099,172.24,172.16,27.66479]
[1641048480642,2.40474099,172.24,172.16,30.66479]
[1641048481144,27.66479,172.28,172.18,12.36804048]
[1641048481942,2.40823973,172.27,172.19,30.6245]
[1641048482945,14.73504114,172.27,172.2,1.71003688]
[1641048484444,2.40823973,172.27,172.2,1.71003688]
[1641048484846,5.40823973,172.27,172.2,1.71003688]
[1641048485046,2.40823973,172.27,172.2,1.71003688]
[1641048485451,2.40823973,172.26,172.2,1.71003688]
[1641048485947,14.73504114,172.27,172.2,1.71003688]
[1641048486152,12.32680141,172.26,172.2,1.71003688]
[1641048488348,12.32680141,172.24,172.2,1.71003688]
[1641048489549,14.73504114,172.25,172.2,1.71003688]
[1641048490150,14.73504114,172.25,172.21,27.66479]
[1641048490551,27.66479,172.28,172.21,27.66479]
[1641048490552,4.12165611,172.24,172.23,4.12165611]
[1641048492451,14.73504114,172.27,172.22,5.83169299]
[1641048493152,4.12182223,172.23,172.22,5.83169299]
[1641048495754,4.12182223,172.23,172.22,4.12165611]
[1641048499766,17.73504114,172.27,172.22,4.12165611]
[1641048499968,12.32680141,172.26,172.22,4.12165611]
[1641048500166,15.32680141,172.26,172.22,4.12165611]
[1641048500368,21.44680141,172.26,172.22,4.12165611]
[1641048500569,12.32680141,172.24,172.19,4.12165611]
[1641048501169,12.32680141,172.23,172.19,4.12165611]
[1641048501872,4.12251951,172.2,172.19,4.12165611]
[1641048505278,14.73504114,172.24,172.19,4.12165611]
[1641048505879,4.12239579,172.2,172.19,4.12165611]
[1641048506479,14.73504114,172.24,172.17,1.70921606]
[1641048507180,4.1220349,172.2,172.19,4.1220349]
[1641048507879,14.73504114,172.24,172.19,4.1220349]
[1641048508379,4.12203099,172.2,172.19,4.1220349]
[1641048509179,14.73504114,172.24,172.17,1.70921606]
[1641048509682,14.73504114,172.24,172.21,4.12087437]
[1641048509881,4.12087437,172.22,172.21,4.12087437]
[1641048510685,30.2922,172.25,172.21,4.12087437]
[1641048511282,4.12080745,172.22,172.21,4.12087437]
[1641048511984,12.32680141,172.26,172.21,4.12087437]
[1641048512384,12.32680141,172.26,172.21,31.78566437]
[1641048512685,4.12045368,172.24,172.23,4.12087437]
[1641048513386,39.99159141,172.28,172.23,4.12087437]
[1641048514489,4.12035802,172.24,172.23,4.12087437]
[1641048515187,42.99159141,172.28,172.23,4.12087437]
[1641048515387,39.99159141,172.28,172.23,4.12087437]
[1641048515989,4.12037477,172.24,172.23,4.12087437]
[1641048516593,2.41155576,172.27,172.23,4.12087437]
[1641048516594,39.99159141,172.28,172.23,4.12087437]
[1641048517491,4.12037613,172.24,172.23,4.12087437]
[1641048517991,2.41187064,172.26,172.22,4.12087437]
[1641048518591,12.32680141,172.27,172.22,4.12087437]
[1641048518791,4.1203853,172.24,172.23,4.12087437]
[1641048519292,14.73836875,172.28,172.2,1.70921606]
[1641048519490,6.565,172.25,172.2,21.38615789]
[1641048520091,2.41156734,172.24,172.23,4.12335197]
[1641048520895,11.59779154,172.28,172.23,4.12335197]
[1641048521497,11.59779154,172.28,172.24,4.12335197]
[1641048521498,2.4133293,172.28,172.24,4.12335197]
[1641048521694,14.78269036,172.28,172.24,4.12335197]
[1641048522193,62.69039,172.29,172.24,4.12335197]
[1641048522794,14.78262055,172.28,172.24,4.12335197]
[1641048523594,62.69039,172.29,172.24,4.12335197]
[1641048524096,62.69039,172.29,172.21,4.12335197]
[1641048524296,2.40245159,172.28,172.21,4.12335197]
[1641048524499,5.40245159,172.28,172.21,4.12335197]
[1641048524698,2.40245159,172.28,172.21,4.12335197]
[1641048525198,5.40245159,172.28,172.21,4.12335197]
[1641048525498,2.40245159,172.28,172.21,4.12335197]
[1641048525699,62.69039,172.29,172.21,4.12335197]
[1641048525899,2.40280778,172.27,172.2,5.83256803]
[1641048526401,2.40280778,172.28,172.2,5.83256803]
[1641048530508,5.40280778,172.28,172.2,5.83256803]
[1641048530707,3.0,172.25,172.2,5.83256803]
[1641048530908,2.40280778,172.28,172.2,5.83256803]
[1641048531106,3.0,172.24,172.2,5.83256803]
[1641048531308,3.0,172.24,172.2,4.12335197]
[1641048531509,3.0,172.23,172.16,166.81521902]
[1641048531807,5.40280778,172.24,172.16,166.81521902]
[1641048532209,3.0,172.24,172.16,166.81521902]
[1641048533110,2.40280778,172.23,172.16,166.81521902]
[1641048533911,5.40280778,172.24,172.16,166.81521902]
[1641048534412,2.40280778,172.23,172.16,166.81521902]
[1641048535114,2.40280778,172.24,172.16,162.69186705]
[1641048535615,4.1059988,172.23,172.17,5.82573271]
[1641048536317,2.40280778,172.24,172.17,5.82573271]
[1641048537122,12.3148151,172.23,172.19,4.12335197]
[1641048537723,2.40280778,172.24,172.19,4.12335197]
[1641048538023,14.77505764,172.24,172.2,4.12335197]
[1641048538623,59.31929,172.25,172.2,4.12335197]
[1641048539222,14.78622174,172.24,172.2,4.12335197]
[1641048539824,31.6545,172.25,172.2,4.12335197]
[1641048540023,44.02601331,172.25,172.21,4.12335197]
[1641048540824,31.6545,172.25,172.21,4.12335197]
[1641048541023,2.41389602,172.24,172.21,4.12335197]
[1641048541622,44.02602546,172.25,172.21,4.12335197]
[1641048542223,2.40607002,172.24,172.19,5.82573271]
[1641048542623,2.40607002,172.24,172.19,33.49052271]
[1641048543423,12.37152546,172.27,172.19,33.49052271]
[1641048543624,43.54262546,172.28,172.2,4.12335197]
[1641048544425,2.40586918,172.27,172.2,5.82573271]
[1641048546131,40.03631546,172.3,172.22,4.12335197]
[1641048546832,40.03631546,172.3,172.23,27.66479]
[1641048547031,2.40533104,172.29,172.23,27.66479]
[1641048547233,2.40533104,172.29,172.22,4.12335197]
[1641048547732,17.7768565,172.29,172.21,4.12335197]
[1641048547933,49.0125565,172.29,172.21,4.12335197]
[1641048548433,2.40533104,172.28,172.2,5.82573271]
[1641048549134,2.40533104,172.28,172.21,4.12335197]
[1641048549634,5.40533104,172.28,172.2,5.82573271]
[1641048549835,2.40533104,172.28,172.2,5.82573271]
[1641048550739,14.7768565,172.28,172.2,5.82573271]
[1641048552539,4.11007171,172.25,172.21,4.12335197]
[1641048553437,2.40533104,172.28,172.21,4.12335197]
[1641048554241,2.40533104,172.28,172.2,1.70238074]
[1641048554839,34.2357,172.29,172.19,27.66479]
[1641048555741,31.2357,172.29,172.19,27.66479]
[1641048558040,31.2357,172.29,172.18,30.9313]
[1641048558642,31.2357,172.29,172.23,4.12333951]
[1641048558643,4.12333951,172.24,172.23,4.12333951]
[1641048559042,11.59773905,172.28,172.23,4.12333951]
[1641048559443,4.12333298,172.24,172.23,4.12333951]
[1641048560044,11.59773905,172.28,172.23,4.12333951]
[1641048560343,4.11243593,172.25,172.22,4.12333951]
[1641048560846,2.41332165,172.28,172.22,4.12333951]
[1641048561546,2.41332165,172.28,172.2,5.83335737]
[1641048561547,4.11279227,172.24,172.2,5.83335737]
[1641048562248,12.33730779,172.27,172.2,5.83335737]
[1641048562650,4.11277451,172.24,172.2,5.83335737]
[1641048563148,12.33730779,172.27,172.2,5.83335737]
[1641048563448,4.11278133,172.24,172.2,5.83335737]
[1641048564053,12.33730779,172.27,172.2,5.83335737]
[1641048564752,4.11277553,172.24,172.2,5.83335737]
[1641048565053,12.33730779,172.27,172.2,5.83335737]
[1641048565552,4.11263674,172.24,172.2,5.83335737]
[1641048565954,14.75062944,172.27,172.2,5.83335737]
[1641048566255,4.11264509,172.24,172.2,5.83335737]
[1641048566655,14.75062944,172.27,172.2,5.83335737]
[1641048567156,4.11279177,172.23,172.2,5.83335737]
[1641048567555,12.33730779,172.27,172.2,5.83335737]
[1641048568055,4.11279284,172.24,172.2,5.83335737]
[1641048568658,4.11281672,172.23,172.2,5.83335737]
[1641048569555,12.33730779,172.27,172.2,5.83335737]